[Event "*** Titled Tuesday 3|2 Blitz"]
[Site "Chess.com"]
[Date "2016.05.03"]
[Round "9"]
[White "SmoothAsAHedgehog"]
[Black "Colombiano07"]
[Result "1-0"]
[WhiteElo "2536"]
[BlackElo "2272"]
[TimeControl "180+2"]
[EndTime "13:02:28 PDT"]
[Termination "SmoothAsAHedgehog won by checkmate"]

1. Nf3 {[%clk 0:03:01.9]} 1... d5 {[%clk 0:02:48.2]} 2. c4 {[%clk 0:03:03.3]}
2... c6 {[%clk 0:02:48.4]} 3. g3 {[%clk 0:03:04.1]} 3... Bf5 {[%clk 0:02:49.1]}
4. Bg2 {[%clk 0:03:04.9]} 4... e6 {[%clk 0:02:50.4]} 5. O-O {[%clk 0:03:01.4]}
5... Nf6 {[%clk 0:02:51.3]} 6. cxd5 {[%clk 0:03:01.5]} 6... exd5 {[%clk
0:02:51.9]} 7. d3 {[%clk 0:03:02.1]} 7... Be7 {[%clk 0:02:52.7]} 8. Qb3 {[%clk
0:03:03.4]} 8... Qb6 {[%clk 0:02:53.1]} 9. Nc3 {[%clk 0:03:05]} 9... O-O {[%clk
0:02:53.2]} 10. Qc2 {[%clk 0:03:06.1]} 10... Nbd7 {[%clk 0:02:53.6]} 11. e4
{[%clk 0:03:05.7]} 11... dxe4 {[%clk 0:02:53.2]} 12. dxe4 {[%clk 0:03:07.6]}
12... Bg6 {[%clk 0:02:52.8]} 13. Nh4 {[%clk 0:03:07.7]} 13... Rfe8 {[%clk
0:02:52.6]} 14. Be3 {[%clk 0:03:07.2]} 14... Qa5 {[%clk 0:02:47.3]} 15. Nxg6
{[%clk 0:03:07.4]} 15... hxg6 {[%clk 0:02:47.5]} 16. Rad1 {[%clk 0:03:08.1]}
16... Bc5 {[%clk 0:02:41.9]} 17. Bc1 {[%clk 0:03:08.9]} 17... Rad8 {[%clk
0:02:34.8]} 18. a3 {[%clk 0:03:09.2]} 18... Qc7 {[%clk 0:02:25.9]} 19. b4 {[%clk
0:03:04.9]} 19... Bb6 {[%clk 0:02:24.7]} 20. Na4 {[%clk 0:03:05.4]} 20... Ne5
{[%clk 0:02:21.8]} 21. Bb2 {[%clk 0:03:01.2]} 21... Rxd1 {[%clk 0:02:11.7]} 22.
Rxd1 {[%clk 0:03:03.1]} 22... Neg4 {[%clk 0:02:09.2]} 23. Nxb6 {[%clk
0:03:02.1]} 23... axb6 {[%clk 0:02:08.6]} 24. h3 {[%clk 0:02:59.7]} 24... Ne5
{[%clk 0:02:05.3]} 25. f4 {[%clk 0:03:00.4]} 25... Ned7 {[%clk 0:02:05]} 26. e5
{[%clk 0:03:00.7]} 26... Nh5 {[%clk 0:02:01.2]} 27. Qf2 {[%clk 0:02:59.7]} 27...
g5 {[%clk 0:01:40.8]} 28. Bf3 {[%clk 0:02:49.4]} 28... Nxf4 {[%clk 0:01:09.7]}
29. gxf4 {[%clk 0:02:49.6]} 29... gxf4 {[%clk 0:01:11.6]} 30. Kh1 {[%clk
0:02:30.9]} 30... Nxe5 {[%clk 0:01:09.1]} 31. Rg1 {[%clk 0:02:31.3]} 31... f6
{[%clk 0:00:51.5]} 32. Be4 {[%clk 0:02:25.5]} 32... Qd7 {[%clk 0:00:46.3]} 33.
Qh4 {[%clk 0:02:11.6]} 33... f5 {[%clk 0:00:16.8]} 34. Bxe5 {[%clk 0:00:40.6]}
34... Rxe5 {[%clk 0:00:12.9]} 35. Bf3 {[%clk 0:00:41.6]} 35... Qe7 {[%clk
0:00:07.9]} 36. Qxf4 {[%clk 0:00:40.4]} 36... Re3 {[%clk 0:00:08.7]} 37. Rg2
{[%clk 0:00:38.8]} 37... Qe5 {[%clk 0:00:09.4]} 38. Qxe5 {[%clk 0:00:29.5]}
38... Rxe5 {[%clk 0:00:11.3]} 39. Ra2 {[%clk 0:00:30.9]} 39... Re3 {[%clk
0:00:12.3]} 40. Kg2 {[%clk 0:00:32.6]} 40... Rb3 {[%clk 0:00:13.8]} 41. Be2
{[%clk 0:00:30]} 41... b5 {[%clk 0:00:14.7]} 42. Bd1 {[%clk 0:00:26.2]} 42...
Rc3 {[%clk 0:00:14.4]} 43. Bc2 {[%clk 0:00:26.2]} 43... Kf8 {[%clk 0:00:15.6]}
44. Bxf5 {[%clk 0:00:25.7]} 44... Ke7 {[%clk 0:00:17.1]} 45. Bg4 {[%clk
0:00:27]} 45... Kd6 {[%clk 0:00:18.1]} 46. Rd2+ {[%clk 0:00:24]} 46... Kc7
{[%clk 0:00:18.4]} 47. Rd7+ {[%clk 0:00:24.2]} 47... Kb6 {[%clk 0:00:20]} 48.
Rxg7 {[%clk 0:00:25.3]} 48... Rxa3 {[%clk 0:00:21.5]} 49. Rf7 {[%clk 0:00:24.9]}
49... Rb3 {[%clk 0:00:21.8]} 50. Rf4 {[%clk 0:00:26]} 50... c5 {[%clk
0:00:18.7]} 51. Rf6+ {[%clk 0:00:23.9]} 51... Kc7 {[%clk 0:00:19.3]} 52. bxc5
{[%clk 0:00:25.4]} 52... Rc3 {[%clk 0:00:20.6]} 53. Rf5 {[%clk 0:00:25.3]} 53...
b4 {[%clk 0:00:21.3]} 54. Rf4 {[%clk 0:00:24.9]} 54... b3 {[%clk 0:00:20.5]} 55.
Rb4 {[%clk 0:00:25.5]} 55... Kc6 {[%clk 0:00:22.1]} 56. Bd1 {[%clk 0:00:24.2]}
56... Kxc5 {[%clk 0:00:21.9]} 57. Rxb7 {[%clk 0:00:25.1]} 57... Rd3 {[%clk
0:00:17.9]} 58. Bxb3 {[%clk 0:00:25.1]} 58... Kc6 {[%clk 0:00:19.1]} 59. Rb4
{[%clk 0:00:24.6]} 59... Kc5 {[%clk 0:00:19.9]} 60. Rb8 {[%clk 0:00:25.6]} 60...
Kc6 {[%clk 0:00:19.9]} 61. Be6 {[%clk 0:00:23.4]} 61... Kc7 {[%clk 0:00:19.6]}
62. Rc8+ {[%clk 0:00:23.6]} 62... Kb7 {[%clk 0:00:20.3]} 63. Rc2 {[%clk
0:00:24.4]} 63... Kb6 {[%clk 0:00:18.6]} 64. Bf5 {[%clk 0:00:23.9]} 64... Re3
{[%clk 0:00:18.5]} 65. Bg4 {[%clk 0:00:21.5]} 65... Kb5 {[%clk 0:00:19.1]} 66.
Bf3 {[%clk 0:00:22.9]} 66... Kb4 {[%clk 0:00:19]} 67. h4 {[%clk 0:00:24.3]}
67... Re5 {[%clk 0:00:19.2]} 68. Kg3 {[%clk 0:00:25.2]} 68... Rc5 {[%clk
0:00:19.5]} 69. Rd2 {[%clk 0:00:20.6]} 69... Kc3 {[%clk 0:00:19.4]} 70. Rd8
{[%clk 0:00:20.9]} 70... Kc4 {[%clk 0:00:18.1]} 71. h5 {[%clk 0:00:22.1]} 71...
Rg5+ {[%clk 0:00:17.4]} 72. Kf4 {[%clk 0:00:23.1]} 72... Rg1 {[%clk 0:00:19.3]}
73. Bg4 {[%clk 0:00:23.3]} 73... Rh1 {[%clk 0:00:19.4]} 74. Kg5 {[%clk
0:00:24.2]} 74... Kc5 {[%clk 0:00:20.4]} 75. h6 {[%clk 0:00:25.1]} 75... Kc6
{[%clk 0:00:21.6]} 76. Rd2 {[%clk 0:00:25.9]} 76... Kc5 {[%clk 0:00:22.5]} 77.
Kg6 {[%clk 0:00:27]} 77... Kc6 {[%clk 0:00:23.3]} 78. h7 {[%clk 0:00:28]} 78...
Kc5 {[%clk 0:00:24.3]} 79. Kg7 {[%clk 0:00:28.9]} 79... Rxh7+ {[%clk 0:00:23.5]}
80. Kxh7 {[%clk 0:00:29.6]} 80... Kc4 {[%clk 0:00:25.4]} 81. Kg6 {[%clk
0:00:30.3]} 81... Kc3 {[%clk 0:00:27.3]} 82. Rd7 {[%clk 0:00:31.3]} 82... Kc4
{[%clk 0:00:29.2]} 83. Kf6 {[%clk 0:00:32.9]} 83... Kc5 {[%clk 0:00:31.1]} 84.
Ke5 {[%clk 0:00:34.5]} 84... Kc4 {[%clk 0:00:26.7]} 85. Rd5 {[%clk 0:00:29.9]}
85... Kc3 {[%clk 0:00:27.3]} 86. Ke4 {[%clk 0:00:31]} 86... Kc4 {[%clk
0:00:27.5]} 87. Bf3 {[%clk 0:00:30.5]} 87... Kc3 {[%clk 0:00:28.7]} 88. Ke3
{[%clk 0:00:31.9]} 88... Kc4 {[%clk 0:00:29.9]} 89. Re5 {[%clk 0:00:33.4]} 89...
Kb4 {[%clk 0:00:30.6]} 90. Kd3 {[%clk 0:00:33.7]} 90... Kb3 {[%clk 0:00:30.9]}
91. Rb5+ {[%clk 0:00:34.7]} 91... Ka4 {[%clk 0:00:30.9]} 92. Kc4 {[%clk
0:00:33.3]} 92... Ka3 {[%clk 0:00:31.5]} 93. Kc3 {[%clk 0:00:34.9]} 93... Ka4
{[%clk 0:00:32.7]} 94. Rc5 {[%clk 0:00:35.3]} 94... Ka3 {[%clk 0:00:34]} 95.
Ra5# {[%clk 0:00:36.2]} 1-0